bitfinex/quotes_BTCUSD_20220218
["timestamp","ask_amount","ask_price","bid_price","bid_amount"]
[1645205371590,0.06232,40142.0,40136.0,0.12162657]
[1645205372992,0.37301622,40142.0,40136.0,0.12162657]
[1645205373192,0.42301622,40142.0,40133.0,0.0499]
[1645205373462,0.062335,40139.0,40133.0,0.0499]
[1645205373658,0.062335,40139.0,40131.0,0.00754328]
[1645205374056,0.06233603,40137.0,40131.0,0.00754328]
[1645205374258,0.06233603,40137.0,40133.0,0.12923993]
[1645205375461,0.062337,40135.0,40133.0,0.12923993]
[1645205378991,0.057337,40135.0,40133.0,0.12923993]
[1645205379899,0.332727,40134.0,40131.0,0.0074]
[1645205380093,0.332727,40134.0,40129.0,0.36947261]
[1645205380292,0.432727,40134.0,40129.0,0.36947261]
[1645205380944,0.395068,40131.0,40129.0,0.63688264]
[1645205381146,0.395068,40131.0,40129.0,0.36947261]
[1645205381843,0.457411,40131.0,40129.0,0.36947261]
[1645205382848,0.607411,40131.0,40129.0,0.36947261]
[1645205383047,0.669759,40131.0,40129.0,0.36947261]
[1645205385491,0.669759,40131.0,40129.0,0.08143924]
[1645205385692,0.669759,40131.0,40121.0,0.00730134]
[1645205385693,0.332727,40127.0,40121.0,0.00730134]
[1645205385891,1.5,40124.0,40120.0,1.96e-05]
[1645205386091,1.895097,40123.0,40119.0,0.0011196]
[1645205386297,2.16983682,40123.0,40122.0,0.00015058]
[1645205386491,0.53657767,40121.0,40119.0,0.0011196]
[1645205386889,0.382727,40120.0,40119.0,0.0011196]
[1645205387289,0.482727,40120.0,40119.0,0.0011196]
[1645205388344,0.15,40120.0,40119.0,0.0011196]
[1645205388740,0.382727,40120.0,40116.0,0.0031]
[1645205388945,0.332727,40119.0,40116.0,0.0031]
[1645205389242,0.332727,40119.0,40115.0,0.0011]
[1645205389243,1.5,40117.0,40115.0,0.0011]
[1645205389442,0.341927,40116.0,40115.0,0.0011]
[1645205389641,0.391927,40116.0,40115.0,0.0011]
[1645205389843,0.1592,40116.0,40115.0,0.0011]
[1645205390041,0.75688196,40116.0,40115.0,0.0011]
[1645205390242,0.441927,40116.0,40115.0,0.0011]
[1645205391545,0.44199373,40116.0,40115.0,0.0011]
[1645205391942,1.5,40113.0,40111.0,0.0011]
[1645205392191,0.39511027,40112.0,40111.0,0.0011]
[1645205392392,0.69901038,40112.0,40111.0,0.0011]
[1645205392691,0.69901038,40112.0,40110.0,0.0011]
[1645205392692,2.445111,40111.0,40110.0,0.0011]
[1645205392891,2.545111,40111.0,40110.0,0.0011]
[1645205393692,0.545111,40111.0,40110.0,0.0011]
[1645205393892,0.482727,40111.0,40110.0,0.0011]
[1645205394693,1.5,40110.0,40109.0,0.002]
[1645205394894,1.932727,40110.0,40109.0,0.002]
[1645205395093,0.432727,40110.0,40109.0,0.002]
[1645205395694,0.432727,40110.0,40109.0,0.001]
[1645205396536,0.43279313,40110.0,40109.0,0.001]
[1645205398135,0.43279313,40110.0,40107.0,0.001]
[1645205398337,0.43279313,40110.0,40105.0,0.0001]
[1645205398338,1.832727,40109.0,40105.0,0.0001]
[1645205398537,1.89511,40109.0,40105.0,0.0001]
[1645205398735,0.54511,40109.0,40105.0,0.0001]
[1645205399791,0.32575102,40107.0,40105.0,0.0001]
[1645205399992,0.332727,40106.0,40105.0,0.0001]
[1645205400391,0.432727,40106.0,40105.0,0.0001]
[1645205400592,0.382727,40106.0,40104.0,0.0234729]
[1645205400790,0.52265368,40105.0,40104.0,0.0234729]
[1645205401189,0.62265368,40105.0,40104.0,0.0234729]
[1645205401790,0.432727,40105.0,40104.0,0.0234729]
[1645205401992,0.1,40105.0,40104.0,0.0234729]
[1645205402389,0.17477355,40106.0,40104.0,0.0234729]
[1645205402690,0.332727,40105.0,40104.0,0.0234729]
[1645205402889,0.432727,40105.0,40104.0,0.0234729]
[1645205403740,0.1,40105.0,40103.0,0.001]
[1645205403945,0.1,40105.0,40093.0,0.0011902]
[1645205403946,0.332727,40102.0,40093.0,0.0011902]
[1645205404144,0.332727,40102.0,40092.0,0.0011]
[1645205404145,0.332727,40098.0,40092.0,0.0011]
[1645205404344,0.332727,40098.0,40089.0,0.000927]
[1645205404345,1.93189088,40096.0,40089.0,0.000927]
[1645205404545,1.93189088,40096.0,40082.0,0.0024882]
[1645205404546,0.1,40091.0,40082.0,0.0024882]
[1645205404743,0.1313822,40083.0,40082.0,0.0024882]
[1645205404945,0.4641092,40083.0,40082.0,0.0024882]
[1645205405142,0.4641092,40083.0,40073.0,0.001]
[1645205405343,0.4641092,40083.0,40073.0,0.001164]
[1645205405344,0.06243263,40081.0,40073.0,0.001164]
[1645205405543,0.332727,40080.0,40073.0,0.001164]
[1645205405744,0.382727,40080.0,40073.0,0.001164]
[1645205405943,0.01507387,40073.0,40069.0,0.5303]
[1645205406144,0.01211398,40071.0,40069.0,0.5292]
[1645205406343,0.3217198,40068.0,40064.0,0.31421257]
[1645205406545,0.3217198,40068.0,40062.0,0.1030037]
[1645205406546,0.0499,40067.0,40063.0,0.00221694]
[1645205406746,0.06245474,40068.0,40067.0,0.203741]
[1645205406943,1.5,40075.0,40063.0,0.00221694]
[1645205407208,1.5,40075.0,40062.0,0.0031037]
[1645205407209,0.632975,40074.0,40062.0,0.0021037]
[1645205407408,0.1,40064.0,40062.0,1.37e-05]
[1645205407609,0.1,40064.0,40052.0,0.174773]
[1645205407610,0.332975,40058.0,40054.0,6.76e-06]
[1645205407805,0.49906543,40058.0,40052.0,0.174773]
[1645205408005,0.0499,40057.0,40052.0,0.174773]
[1645205408203,0.332975,40056.0,40052.0,0.174773]
[1645205408606,0.0499,40057.0,40053.0,0.332975]
[1645205408804,0.1,40065.0,40054.0,0.27875186]
[1645205409005,0.0499,40057.0,40054.0,0.27875186]
[1645205409306,0.332975,40063.0,40054.0,0.11621684]
[1645205409505,0.06589738,40062.0,40054.0,0.11621684]
[1645205409712,0.332975,40061.0,40054.0,0.11621684]
[1645205409906,0.332975,40059.0,40054.0,0.06271684]
[1645205410106,0.39544515,40059.0,40054.0,0.06271684]
[1645205410305,0.58317286,40055.0,40054.0,0.06271684]
[1645205410506,0.382975,40055.0,40052.0,0.174773]
[1645205410707,1.5,40053.0,40050.0,0.00015281]
[1645205410943,0.377875,40052.0,40050.0,0.00015281]
[1645205411142,0.377875,40052.0,40042.0,0.0010496]
[1645205411346,0.332975,40050.0,40031.0,0.001]
[1645205411543,0.333023,40044.0,40043.0,0.00015282]
[1645205411743,0.333023,40047.0,40043.0,0.00015282]
[1645205411940,0.1,40044.0,40043.0,0.00015282]
[1645205412345,0.1,40044.0,40037.0,0.0010288]
[1645205412543,0.21597016,40042.0,40037.0,0.0010288]
[1645205412743,0.383023,40041.0,40037.0,0.0010288]
[1645205412952,0.392823,40041.0,40037.0,0.0010288]
[1645205413142,0.492823,40041.0,40037.0,0.0010288]
[1645205413443,1.5,40040.0,40037.0,0.0010288]
[1645205413643,0.34616252,40039.0,40037.0,0.0010288]
[1645205413842,0.483023,40039.0,40037.0,0.0010288]
[1645205414044,0.01444307,40038.0,40037.0,0.0010288]
[1645205414243,0.34056607,40038.0,40037.0,0.0010288]
[1645205414442,0.48366607,40038.0,40037.0,0.0010288]
[1645205414695,0.545523,40038.0,40037.0,0.0010288]
[1645205415098,1.305923,40038.0,40037.0,0.0010288]
[1645205415293,1.5,40037.0,40031.0,0.001]
[1645205415496,0.0625071,40036.0,40031.0,0.001]
[1645205415697,0.0625071,40036.0,40031.0,0.10094742]
[1645205416294,0.0625071,40036.0,40031.0,0.00123547]
[1645205416495,0.32849647,40034.0,40031.0,0.00077547]
[1645205416696,0.0499,40033.0,40031.0,0.00031]
[1645205417095,0.11241,40033.0,40031.0,0.00031]
[1645205417501,0.11241,40033.0,40030.0,7.8e-05]
[1645205417696,1.62501969,40032.0,40020.0,0.01]
[1645205417895,0.0499,40031.0,40020.0,0.01]
[1645205418096,0.06250554,40029.0,40020.0,0.01]
[1645205418351,0.28753369,40032.0,40031.0,0.31220007]
[1645205418352,0.558048,40032.0,40031.0,0.31220007]
[1645205418545,0.1,40032.0,40031.0,0.31220007]
[1645205418744,0.0499,40035.0,40031.0,0.31220007]
[1645205419143,0.0499,40035.0,40031.0,0.36220007]
[1645205419344,0.0499,40035.0,40034.0,0.13058589]
[1645205419544,0.0499,40035.0,40031.0,0.31220007]
[1645205419749,0.0499,40035.0,40031.0,0.30720007]
[1645205420049,0.333023,40034.0,40031.0,0.30720007]
[1645205420246,0.06248868,40038.0,40031.0,0.30720007]
[1645205420546,0.31528774,40038.0,40031.0,0.30720007]
[1645205420747,0.06248868,40038.0,40031.0,0.30720007]
[1645205421045,0.06248868,40038.0,40021.0,0.01]
[1645205421048,1.5,40037.0,40021.0,0.01]
[1645205421245,1.5,40037.0,40026.0,0.00015111]
[1645205421246,0.7604,40035.0,40026.0,0.00015111]
[1645205421545,0.55007827,40036.0,40021.0,0.01]
[1645205421546,0.7604,40030.0,40021.0,0.01]
[1645205421747,0.88545297,40028.0,40018.0,0.0120226]
[1645205421954,0.88545297,40028.0,40013.0,0.00134425]
[1645205421955,0.09810159,40025.0,40013.0,0.00134425]
[1645205422208,0.09810159,40025.0,39999.0,0.001]
[1645205422209,1.5,40022.0,39999.0,0.001]
[1645205422408,1.5,40022.0,39994.0,0.00138992]
[1645205422409,1.5,40014.0,39995.0,0.0010196]
[1645205422613,0.062564,40008.0,39995.0,0.0010196]
[1645205422805,0.37540762,40006.0,39995.0,0.0010196]
[1645205423006,0.0499,40005.0,39998.0,0.10282076]
[1645205423604,0.1107718,40005.0,39998.0,0.10282076]
[1645205423808,0.333023,40004.0,39995.0,0.0010196]
[1645205424007,0.0091,40003.0,39995.0,0.0010196]
[1645205424206,0.0041,40003.0,39995.0,0.0010196]
[1645205424404,0.0041,40003.0,39995.0,0.1010196]
[1645205424606,0.0499,40009.0,39995.0,0.1010196]
[1645205424607,0.06253663,40009.0,40002.0,0.1]
[1645205424906,0.3,40015.0,40001.0,0.1]
[1645205424907,0.0499,40015.0,40001.0,0.1]
[1645205425109,0.263211,40015.0,39998.0,0.1]
[1645205425305,0.263211,40015.0,39995.0,0.0010196]
[1645205425507,0.333023,40010.0,39995.0,0.0010196]
[1645205425707,0.06254501,40008.0,39995.0,0.0010196]
[1645205425954,0.12509002,40009.0,39998.0,0.00013963]
[1645205425955,0.333023,40006.0,39998.0,0.00013963]
[1645205426251,0.17509002,40009.0,39998.0,0.00013963]
[1645205426453,0.0096,40008.0,39998.0,0.00013963]
[1645205426650,0.06255052,40005.0,39998.0,0.00013963]
[1645205426850,0.06255052,40005.0,39997.0,0.09577158]
[1645205426851,0.333023,40004.0,39997.0,0.09577158]
[1645205427050,0.02596101,40008.0,39999.0,0.1]
[1645205427256,0.5158,40024.0,40007.0,0.1]
[1645205427257,0.01538479,40019.0,40007.0,0.1]
[1645205427456,0.0095,40018.0,40001.0,0.3052]
[1645205427657,0.0095,40018.0,40010.0,0.34297399]
[1645205427855,0.07202419,40018.0,40011.0,0.005487]
[1645205428053,0.0095,40018.0,40013.0,0.1]
[1645205428253,0.427893,40028.0,40014.0,0.49442873]
[1645205428254,0.187593,40028.0,40014.0,0.49442873]
[1645205428556,2.4704651,40038.0,40014.0,0.49442873]
[1645205428557,0.06251,40029.0,40025.0,0.45039556]
[1645205428753,0.12502,40033.0,40026.0,0.10525]
[1645205428754,0.06251358,40028.0,40026.0,0.10525]
[1645205428954,0.0093,40041.0,40026.0,0.10525]
[1645205428955,0.0093,40041.0,40027.0,0.1]
[1645205429154,0.0093,40041.0,40028.0,0.0499]
[1645205429352,0.0093,40041.0,40028.0,0.14423]
[1645205429592,0.0093,40041.0,40040.0,0.11067581]
[1645205429794,0.39550964,40045.0,40040.0,0.11067581]
[1645205429995,0.20611481,40046.0,40031.0,0.0499]
[1645205429996,0.333023,40044.0,40031.0,0.0499]
[1645205430493,0.3391733,40044.0,40031.0,0.0499]
[1645205430692,0.20611481,40046.0,40031.0,0.0499]
[1645205430693,0.1999,40047.0,40032.0,0.57508835]
[1645205430899,0.01,40049.0,40038.0,0.05]
[1645205431098,0.01,40049.0,40046.0,0.1]
[1645205431296,0.014998,40067.0,40047.0,0.6329]
[1645205431497,0.5,40079.0,40047.0,0.6329]
[1645205431498,0.03669066,40077.0,40047.0,0.6828]
[1645205431797,0.24060147,40065.0,40058.0,0.34615471]
[1645205431995,0.34914784,40065.0,40059.0,0.0499]
[1645205432195,0.24060147,40065.0,40059.0,0.0499]
[1645205432392,0.333023,40064.0,40059.0,0.0499]
[1645205432993,0.333023,40062.0,40059.0,0.0499]
[1645205433460,0.333023,40062.0,40053.0,0.00014935]
[1645205433461,0.01862719,40061.0,40053.0,0.00014935]
[1645205433761,0.8604,40058.0,40053.0,9.35e-06]
[1645205434060,0.3391733,40060.0,40028.0,0.09433]
[1645205434061,0.01402487,40056.0,40036.0,0.0499]
[1645205434256,0.01402487,40056.0,40029.0,0.0093]
[1645205434257,0.01402487,40056.0,40035.0,0.0499]
[1645205434456,0.0061503,40055.0,40033.0,0.124946]
[1645205434657,0.0061503,40055.0,40036.0,0.05]
[1645205434857,0.0061503,40055.0,40042.0,0.10702274]
[1645205434858,0.26068968,40055.0,40042.0,0.10702274]
[1645205435056,0.26068968,40055.0,40038.0,0.26062717]
[1645205435257,0.23650348,40055.0,40033.0,0.174946]
[1645205435758,0.23650348,40055.0,40034.0,0.333023]
[1645205435957,0.23150348,40055.0,40035.0,0.005247]
[1645205436159,0.23150348,40055.0,40043.0,0.26353412]
[1645205436357,0.333023,40054.0,40043.0,0.26353412]
[1645205436558,0.24593317,40048.0,40035.0,0.333023]
[1645205436761,0.24593317,40048.0,40033.0,0.124946]
[1645205436762,0.3,40047.0,40033.0,0.124946]
[1645205436960,0.24593317,40048.0,40030.0,0.174869]
[1645205437192,0.0093,40046.0,40030.0,0.174869]
[1645205437391,0.0093,40046.0,40030.0,0.124969]
[1645205437595,0.0093,40046.0,40029.0,0.0093]
[1645205437596,0.333023,40038.0,40029.0,0.0093]
[1645205437794,0.333023,40038.0,40028.0,0.09433]
[1645205437795,0.34685132,40036.0,40028.0,0.09433]
[1645205437993,0.34685132,40036.0,40030.0,0.00014939]
[1645205437994,0.01318032,40035.0,40030.0,0.00014939]
[1645205438196,0.333023,40034.0,40030.0,0.00014939]
[1645205438393,0.27679235,40039.0,40030.0,0.00014939]
[1645205438592,0.333023,40038.0,40030.0,0.00014939]
[1645205438791,1.5,40037.0,40028.0,0.08947939]
[1645205438991,0.333023,40037.0,40028.0,0.08947939]
[1645205439595,0.0971808,40035.0,40028.0,0.08947939]
[1645205439795,0.433023,40037.0,40028.0,0.08947939]
[1645205439796,0.382923,40034.0,40028.0,0.08947939]
[1645205439995,0.333023,40032.0,40028.0,0.08947939]
[1645205440192,0.333023,40032.0,40028.0,0.08774326]
[1645205440393,0.0499,40031.0,40028.0,0.08774326]
[1645205440593,0.333023,40030.0,40028.0,0.08774326]
[1645205440844,0.01479804,40033.0,40030.0,0.11592713]
[1645205441041,0.0499,40032.0,40030.0,0.11592713]
[1645205441241,0.01356703,40039.0,40030.0,0.16592713]
[1645205441442,0.333023,40038.0,40030.0,0.16592713]
[1645205441641,6.659e-05,40034.0,40028.0,0.08774326]
[1645205442141,0.333023,40033.0,40028.0,0.08774326]
[1645205442441,6.659e-05,40034.0,40029.0,0.333023]
[1645205442643,6.659e-05,40034.0,40030.0,0.10195343]
[1645205442844,6.659e-05,40034.0,40031.0,0.333023]
[1645205443049,6.659e-05,40034.0,40032.0,0.064389]
[1645205443245,0.00191825,40046.0,40034.0,1.55]
[1645205443446,0.00191825,40046.0,40041.0,0.1967249]
[1645205443644,0.00191825,40046.0,40042.0,0.682829]
[1645205443842,0.00191825,40046.0,40043.0,0.11729126]
[1645205444042,0.00191825,40046.0,40044.0,0.055172]
[1645205444241,0.00191825,40046.0,40045.0,0.66658022]
[1645205444442,0.02244113,40064.0,40050.0,0.062446]
[1645205444707,0.07,40060.0,40051.0,0.3]
[1645205444905,0.07,40056.0,40052.0,0.05]
[1645205445103,0.07,40053.0,40052.0,0.05]
[1645205445304,0.07,40053.0,40052.0,0.41412869]
[1645205445504,0.07,40053.0,40052.0,0.74715169]
[1645205445705,0.07,40053.0,40052.0,0.41920969]
[1645205445909,0.07,40053.0,40052.0,0.71920969]
[1645205446310,0.0115998,40076.0,40053.0,0.07508]
[1645205446508,6.538e-05,40059.0,40056.0,0.062436]
[1645205446814,6.538e-05,40059.0,40058.0,0.433023]
[1645205447010,5.38e-06,40059.0,40058.0,0.832923]
[1645205447210,5.38e-06,40059.0,40058.0,2.23040059]
[1645205447411,0.063,40077.0,40058.0,1.282923]
[1645205447613,0.063,40077.0,40064.0,0.062417]
[1645205447811,0.063,40077.0,40063.0,0.124834]
[1645205448011,0.063,40077.0,40059.0,0.0092]
[1645205448442,0.29056327,40076.0,40064.0,0.30598893]
[1645205448843,0.1,40076.0,40064.0,0.30598893]
[1645205449441,0.333023,40068.0,40064.0,0.30598893]
[1645205449643,0.333023,40068.0,40061.0,0.06244]
[1645205449843,0.23153062,40070.0,40059.0,0.0092]
[1645205449844,0.333023,40067.0,40059.0,0.0092]
[1645205450045,0.333023,40067.0,40058.0,0.0002341]
[1645205450241,0.0198,40069.0,40055.0,0.0499]
[1645205450447,0.0198,40069.0,40056.0,0.633023]
[1645205450645,0.0198,40069.0,40057.0,0.28125972]
[1645205450869,0.01,40069.0,40058.0,0.495466]
[1645205451045,0.01361676,40069.0,40059.0,0.3]
[1645205451267,0.00183593,40068.0,40059.0,0.4]
[1645205451443,6.254e-05,40067.0,40066.0,0.09571688]
[1645205451645,6.254e-05,40067.0,40066.0,0.14571688]
[1645205451845,6.254e-05,40067.0,40066.0,0.47736977]
[1645205452101,6.254e-05,40067.0,40066.0,0.14571688]
[1645205452295,6.254e-05,40067.0,40061.0,0.249681]
[1645205452296,6.254e-05,40067.0,40057.0,0.0002341]
[1645205452497,6.254e-05,40067.0,40054.0,0.1]
[1645205452498,0.332991,40066.0,40056.0,0.0002341]
[1645205452697,6.254e-05,40067.0,40054.0,0.0002341]
[1645205452894,6.254e-05,40067.0,40056.0,0.1]
[1645205453095,6.254e-05,40067.0,40057.0,0.601514]
[1645205453295,6.254e-05,40067.0,40060.0,0.251593]
[1645205453494,6.254e-05,40067.0,40059.0,0.24618113]
[1645205453495,6.254e-05,40067.0,40061.0,0.112331]
[1645205454094,6.254e-05,40067.0,40062.0,0.25424935]
[1645205455104,6.254e-05,40067.0,40063.0,1.86385397]
[1645205455299,0.01361676,40069.0,40068.0,0.0056954]
[1645205455300,0.01185523,40069.0,40068.0,0.0056954]
[1645205455600,0.02230128,40093.0,40069.0,1.5]
[1645205455849,0.02230128,40093.0,40079.0,0.20545959]
[1645205455850,0.0091,40093.0,40079.0,0.20545959]
[1645205456048,0.0091,40093.0,40080.0,0.3]
[1645205456248,0.00879209,40089.0,40088.0,0.0990038]
[1645205456452,0.00879209,40089.0,40088.0,0.0980038]
[1645205457249,0.34178309,40089.0,40078.0,0.0092]
[1645205457451,0.332991,40088.0,40078.0,0.0092]
[1645205458048,0.0092,40087.0,40072.0,0.046]
[1645205458251,0.19390771,40083.0,40075.0,0.12539894]
[1645205458452,0.332991,40082.0,40072.0,0.046]
[1645205458652,0.19390771,40083.0,40072.0,0.046]
[1645205459254,0.0092,40087.0,40072.0,0.046]
[1645205459455,0.0092,40087.0,40073.0,0.3]
[1645205459701,0.0092,40087.0,40072.0,0.046]
[1645205459901,0.0092,40087.0,40077.0,0.28816015]
[1645205460103,0.332991,40086.0,40077.0,0.28816015]
[1645205460306,0.0092,40087.0,40085.0,0.11484166]
[1645205460506,0.00879209,40089.0,40085.0,0.11484166]
[1645205460507,0.00879209,40089.0,40086.0,0.251394]
[1645205460701,0.00879209,40089.0,40087.0,0.251385]
[1645205460901,0.00879209,40089.0,40088.0,0.30030198]
[1645205461304,0.00879209,40089.0,40088.0,0.55123738]
[1645205461902,0.01587506,40089.0,40088.0,0.55123738]
[1645205462307,0.0098,40103.0,40090.0,0.251355]
[1645205462505,0.01,40109.0,40092.0,0.25134]
[1645205462704,0.01,40109.0,40093.0,0.046]
[1645205462905,0.01,40109.0,40096.0,0.251307]
[1645205463206,0.01,40109.0,40108.0,0.36438464]
[1645205463455,0.134724,40129.0,40109.0,1.5]
[1645205463456,0.0024998,40123.0,40109.0,1.5]
[1645205463658,0.01,40129.0,40109.0,1.5]
[1645205463659,0.14184473,40127.0,40111.0,0.06234167]
[1645205463853,0.01,40129.0,40112.0,0.297184]
[1645205464051,0.01,40129.0,40116.0,0.10185648]
[1645205464258,0.25019261,40121.0,40116.0,0.10185648]
[1645205464656,0.01,40129.0,40117.0,0.25115]
[1645205465052,0.01,40129.0,40116.0,0.15185648]
[1645205465255,0.01,40129.0,40117.0,0.721829]
[1645205465454,0.01,40129.0,40118.0,0.3]
[1645205465654,0.01,40129.0,40128.0,0.0975387]
[1645205465857,0.0094,40145.0,40128.0,0.0975387]
[1645205465858,0.0094,40145.0,40129.0,1.5]
[1645205466055,0.0094,40145.0,40130.0,0.251041]
[1645205466255,0.01,40149.0,40131.0,0.613349]
[1645205466453,0.01,40149.0,40131.0,0.362315]
[1645205466653,0.22035668,40149.0,40142.0,0.40577968]
[1645205466857,0.332991,40148.0,40142.0,0.40577968]
[1645205467102,0.01,40149.0,40142.0,0.40577968]
[1645205467496,0.01,40149.0,40142.0,0.27788909]
[1645205467902,0.01,40149.0,40142.0,0.32788909]
[1645205468097,0.01,40149.0,40143.0,0.250947]
[1645205468296,0.01,40149.0,40144.0,0.3]
[1645205468502,0.01,40149.0,40145.0,0.10382936]
[1645205468699,0.01,40149.0,40146.0,0.05]
[1645205469197,0.0096,40157.0,40148.0,1.5]
[1645205469408,0.25991,40178.0,40148.0,1.5]
[1645205469409,0.0003564,40175.0,40152.0,1.5]
[1645205469601,0.0003564,40175.0,40160.0,0.250811]
[1645205469800,0.0003564,40175.0,40163.0,0.05]
[1645205470003,0.0003564,40175.0,40166.0,0.250769]
[1645205470198,0.0003564,40175.0,40169.0,0.1]
[1645205470399,0.0003564,40175.0,40169.0,0.250747]
[1645205470601,0.01,40189.0,40174.0,0.112243]
[1645205470853,0.01,40189.0,40176.0,0.10187227]
[1645205471054,0.01,40189.0,40188.0,0.38469835]
[1645205471251,0.01,40189.0,40186.0,0.046]
[1645205471455,0.332991,40187.0,40186.0,0.046]
[1645205471651,0.01,40189.0,40175.0,0.4059]
[1645205471652,0.19942384,40184.0,40175.0,0.4059]
[1645205471956,0.332991,40183.0,40176.0,0.046]
[1645205472154,0.332991,40183.0,40175.0,0.0099]
[1645205472354,0.01,40189.0,40177.0,0.10380274]
[1645205472754,0.332991,40192.0,40177.0,0.10380274]
[1645205472952,0.332991,40190.0,40175.0,0.0099]
[1645205473152,0.3,40193.0,40175.0,0.0099]
[1645205473153,0.20569916,40184.0,40175.0,0.0099]
[1645205473352,0.977744,40192.0,40174.0,0.13261]
[1645205473552,0.08866374,40197.0,40174.0,0.13261]
[1645205473553,0.3,40194.0,40174.0,0.23261]
[1645205473954,0.00035014,40197.0,40182.0,0.250638]
[1645205474154,0.013,40198.0,40174.0,0.33261]
[1645205474155,0.01335014,40198.0,40186.0,0.250608]
[1645205474354,0.01335014,40198.0,40187.0,0.0116864]
[1645205474355,0.00035014,40197.0,40187.0,0.0116864]
[1645205474606,0.013,40198.0,40190.0,0.250579]
[1645205474607,0.01335014,40198.0,40190.0,0.250579]
[1645205474796,0.01335014,40198.0,40191.0,0.0116864]
[1645205474797,0.00035014,40197.0,40191.0,0.0116864]
[1645205475001,0.0095,40215.0,40197.0,1.750522]
[1645205475199,0.30337611,40231.0,40197.0,1.750522]
[1645205475200,6.211e-05,40231.0,40212.0,0.250406]
[1645205475399,6.211e-05,40231.0,40211.0,0.0116864]
[1645205475400,0.00065504,40224.0,40223.0,0.0116864]
[1645205475599,0.00131008,40245.0,40232.0,1.5]
[1645205475800,0.0022857,40255.0,40238.0,1.5]
[1645205475999,0.000987,40256.0,40242.0,0.250175]
[1645205476199,0.1197,40261.0,40247.0,1.5]
[1645205476200,0.0011,40261.0,40247.0,1.5]
[1645205476399,0.0011,40261.0,40251.0,0.250106]
[1645205476400,0.0005852,40260.0,40251.0,0.250106]
[1645205476901,0.0005852,40260.0,40243.0,0.4]
[1645205476903,0.0005852,40260.0,40252.0,0.046]
[1645205477104,0.332991,40259.0,40251.0,0.046]
[1645205477298,0.0005852,40260.0,40239.0,0.046]
[1645205477299,1.5,40257.0,40239.0,0.046]
[1645205477500,1.5,40257.0,40232.0,0.75]
[1645205477501,0.0883136,40250.0,40233.0,0.05]
[1645205477801,0.24871413,40243.0,40230.0,0.13258171]
[1645205478006,0.332991,40242.0,40241.0,0.1998]
[1645205478199,0.332991,40242.0,40232.0,0.2499]
[1645205478200,0.402891,40242.0,40232.0,0.2499]
[1645205478455,0.402891,40242.0,40230.0,0.13258171]
[1645205478456,0.0883136,40235.0,40230.0,0.13258171]
[1645205478655,0.332991,40234.0,40216.0,1.32189002]
[1645205478853,0.332991,40233.0,40217.0,0.26321011]
[1645205479058,0.3,40240.0,40218.0,0.250357]
[1645205479255,0.3,40244.0,40226.0,0.0116864]
[1645205479454,0.332991,40238.0,40218.0,0.05]
[1645205479662,0.332991,40238.0,40216.0,1.27589002]
[1645205479663,1.17193261,40237.0,40216.0,1.27589002]
[1645205479955,1.17193261,40237.0,40217.0,0.250365]
[1645205479956,0.1,40237.0,40217.0,0.250365]
[1645205480155,0.4,40237.0,40218.0,0.05]
[1645205480356,0.332991,40235.0,40217.0,0.046]
[1645205480556,0.20221947,40228.0,40217.0,0.046]
[1645205480754,0.20221947,40228.0,40216.0,1.27589002]
[1645205480953,0.1,40235.0,40227.0,0.09632575]
[1645205481153,0.15,40235.0,40227.0,0.09632575]
[1645205481560,0.00016004,40231.0,40227.0,0.09632575]
[1645205481953,0.26030673,40230.0,40211.0,0.01]
[1645205482214,0.0883136,40219.0,40211.0,0.01]
[1645205482408,0.332991,40216.0,40211.0,0.01]
[1645205482608,0.0883136,40223.0,40211.0,0.01]
[1645205482807,0.1,40223.0,40211.0,0.01]
[1645205483008,0.1,40223.0,40222.0,0.09587155]
[1645205483209,0.1,40228.0,40222.0,0.09587155]
[1645205483807,0.10374484,40231.0,40222.0,0.09587155]
[1645205484008,0.10389127,40231.0,40222.0,0.09587155]
[1645205484208,0.00014643,40231.0,40222.0,0.09587155]
[1645205484716,0.00014643,40231.0,40223.0,0.2620094]
[1645205484908,0.00014643,40231.0,40223.0,0.259423]
[1645205485108,0.00013238,40235.0,40223.0,0.259423]
[1645205485307,0.00013238,40235.0,40223.0,0.0091]
[1645205485512,0.0883136,40233.0,40211.0,0.01]
[1645205485709,0.0883136,40233.0,40214.0,0.05]
[1645205485944,0.00013238,40235.0,40211.0,0.06]
[1645205485945,0.00013238,40235.0,40215.0,0.3]
[1645205486444,0.332991,40229.0,40228.0,0.11049688]
[1645205486643,0.25384066,40230.0,40219.0,0.31764265]
[1645205487043,0.30384066,40230.0,40211.0,0.01]
[1645205487252,0.0883136,40224.0,40211.0,0.01]
[1645205487445,1.310735,40229.0,40211.0,0.01]
[1645205487446,0.332991,40218.0,40211.0,0.01]
[1645205487645,0.046,40217.0,40211.0,0.01]
[1645205487845,0.046,40217.0,40212.0,0.00123566]
[1645205487846,0.0559,40217.0,40212.0,0.00123566]
[1645205488043,0.332991,40216.0,40212.0,0.00123566]
[1645205488243,0.046,40216.0,40212.0,0.00123566]
[1645205488443,0.146,40216.0,40212.0,0.00123566]
[1645205488644,0.046,40216.0,40213.0,0.12346205]
[1645205488844,0.046,40216.0,40212.0,0.00123566]
[1645205489044,0.332991,40215.0,40212.0,0.00123566]
[1645205489445,0.1,40215.0,40212.0,0.00123566]
[1645205489697,0.1,40215.0,40211.0,0.01]
[1645205489698,0.4213046,40214.0,40211.0,0.01]
[1645205489904,0.4213046,40214.0,40209.0,0.001]
[1645205489905,0.0699,40212.0,40209.0,0.001]
[1645205490102,0.0699,40212.0,40196.0,0.3]
[1645205490103,0.7604,40209.0,40196.0,0.3]
[1645205490300,0.7604,40206.0,40201.0,0.009]
[1645205490501,0.096,40205.0,40201.0,0.009]
[1645205490699,0.2473343,40203.0,40201.0,0.009]
[1645205490897,0.046,40202.0,40201.0,0.009]
[1645205491097,0.046,40202.0,40186.0,0.22234577]